bitfinex/quotes_SOLUSD_20250310
["timestamp","ask_amount","ask_price","bid_price","bid_amount"]
[1741601222938,0.03,128.89,128.86,56.49240589]
[1741601223143,0.03,128.89,128.88,56.49240589]
[1741601223720,0.03,128.89,128.85,1.5433]
[1741601223923,56.52240589,128.89,128.82,7.90466157]
[1741601224131,80.974,128.88,128.83,56.49240589]
[1741601224346,80.974,128.88,128.84,56.49240589]
[1741601225232,80.974,128.88,128.85,56.49240589]
[1741601225424,0.03,128.89,128.86,56.49240589]
[1741601226040,0.03,128.89,128.88,56.49240589]
[1741601226249,0.03,128.89,128.88,94.21761788]
[1741601226835,0.03,128.89,128.88,94.07545631]
[1741601227028,0.03,128.89,128.88,94.21761788]
[1741601227230,0.03,128.89,128.88,45.54308451]
[1741601227429,0.0001,128.89,128.88,101.97671788]
[1741601227656,0.0001,128.93,128.92,18.64964886]
[1741601227837,0.03,128.99,128.93,0.14216157]
[1741601228233,0.03,128.99,128.98,37.64182294]
[1741601228432,0.03,128.99,128.98,56.39518014]
[1741601229253,0.03,129.02,129.0,20.14216157]
[1741601229433,0.03,129.02,129.0,95.18699057]
[1741601229835,0.03,129.02,129.0,76.39518014]
[1741601230354,0.03,129.02,129.0,56.39518014]
[1741601230539,0.03,129.02,128.99,0.14216157]
[1741601230744,0.03,129.02,129.0,56.39518014]
[1741601231559,0.03,129.02,128.99,56.39518014]
[1741601231761,0.03,129.02,129.0,56.39518014]
[1741601232247,0.03,129.02,128.99,56.39518014]
[1741601233261,0.03,129.02,128.97,56.39518014]
[1741601233564,56.42518014,129.02,128.97,56.39518014]
[1741601233763,0.03,129.02,128.97,56.39518014]
[1741601234138,0.03,129.02,128.98,56.39518014]
[1741601234844,0.03,129.02,129.0,56.39518014]
[1741601235959,0.03,129.02,129.0,139.47623228]
[1741601236353,0.03,129.02,129.0,451.47623228]
[1741601236663,0.03,129.02,129.0,443.72433228]
[1741601236860,0.03,129.02,129.0,368.53734171]
[1741601237071,0.03,129.02,129.0,56.39518014]
[1741601237238,0.03,129.02,128.95,18.79181043]
[1741601237443,7.7807,129.02,128.99,56.39518014]
[1741601237958,56.42518014,129.01,128.94,0.14216157]
[1741601238268,56.39518014,128.99,128.94,56.39518014]
[1741601238763,137.36918014,128.98,128.92,56.39518014]
[1741601238982,137.36918014,128.97,128.92,56.39518014]
[1741601239268,80.974,129.0,128.96,56.39518014]
[1741601239462,7.7525,128.99,128.96,56.39518014]
[1741601239663,80.974,128.98,128.95,56.39518014]
[1741601241570,88.7275,128.98,128.95,56.39518014]
[1741601241861,80.974,128.98,128.95,56.39518014]
[1741601242246,80.974,128.98,128.97,56.39518014]
[1741601242442,7.7814,129.01,128.97,56.39518014]
[1741601242642,0.03,129.01,128.99,56.39518014]
[1741601242949,0.03,129.01,129.0,56.39518014]
[1741601243474,0.03,129.01,129.0,64.14708014]
[1741601243783,0.03,129.01,129.0,120.82658342]
[1741601243965,0.03,129.01,129.0,139.47623228]
[1741601244276,0.0001,129.01,129.0,139.47623228]
[1741601246264,0.0001,129.01,129.0,451.47623228]
[1741601247864,0.0001,129.01,129.0,139.47623228]
[1741601249174,0.0001,129.01,129.0,131.72433228]
[1741601249372,0.0001,129.01,129.0,139.47623228]
[1741601250761,0.0001,129.01,129.0,131.72433228]
[1741601251074,0.0001,129.01,129.0,387.32915214]
[1741601251372,0.0001,129.01,129.0,56.39518014]
[1741601253174,0.0001,129.01,128.95,7.7549]
[1741601253350,0.0001,129.01,128.98,56.39518014]
[1741601253673,80.9741,129.01,128.96,56.39518014]
[1741601254063,80.9741,129.01,128.99,56.39518014]
[1741601255057,80.9741,129.01,129.0,56.39518014]
[1741601255261,0.0001,129.01,129.0,56.39518014]
[1741601257958,137.36928014,129.01,128.96,56.39518014]
[1741601258353,80.9741,129.01,128.97,56.39518014]
[1741601258775,80.9741,129.01,129.0,0.063]
[1741601259557,88.7254,129.01,129.0,0.063]
[1741601260182,145.12058014,129.01,129.0,0.063]
[1741601260982,122.94658014,129.01,128.94,56.39518014]
[1741601261281,56.39518014,128.99,128.94,56.39518014]
[1741601261576,56.39518014,128.99,128.93,0.063]
[1741601261577,56.39518014,128.98,128.93,0.063]
[1741601261768,137.49518014,128.98,128.93,56.45818014]
[1741601262281,118.7304283,128.98,128.93,37.6934283]
[1741601262460,37.6304283,128.96,128.93,0.063]
[1741601262659,37.6304283,128.95,128.93,0.063]
[1741601262983,37.6304283,128.94,128.93,0.063]
[1741601263180,37.6304283,128.94,128.88,37.6304283]
[1741601263387,37.6304283,128.92,128.87,0.063]
[1741601263561,7.7579,128.9,128.87,0.063]
[1741601263880,88.8579,128.9,128.87,0.063]
[1741601264399,81.1,128.9,128.87,0.063]
[1741601264768,137.60799614,128.9,128.87,0.063]
[1741601265084,56.50799614,128.88,128.87,0.063]
[1741601265281,115.30799614,128.88,128.87,0.063]
[1741601265789,139.70906428,128.88,128.87,0.063]
[1741601265963,20.0,128.84,128.8,0.063]
[1741601266162,56.50799614,128.85,128.8,0.063]
[1741601266572,56.50799614,128.82,128.8,0.063]
[1741601267181,56.50799614,128.83,128.8,0.063]
[1741601267783,58.8,128.84,128.8,0.063]
[1741601267997,123.06969614,128.84,128.8,0.063]
[1741601268160,56.50799614,128.83,128.8,0.063]
[1741601268363,56.50799614,128.82,128.8,0.063]
[1741601268562,56.50799614,128.83,128.8,0.063]
[1741601268763,115.30799614,128.84,128.8,0.063]
[1741601269073,58.8,128.84,128.81,56.50799614]
[1741601269599,58.8,128.87,128.82,56.50799614]
[1741601269764,81.1,128.85,128.83,64.27009614]
[1741601269970,81.1,128.85,128.82,56.50799614]
[1741601270170,81.1,128.85,128.83,56.50799614]
[1741601270778,81.1,128.89,128.84,56.50799614]
[1741601270996,139.9,128.9,128.87,56.50799614]
[1741601271199,81.1,128.9,128.87,56.50799614]
[1741601271368,81.1,128.9,128.86,56.50799614]
[1741601271566,81.1,128.9,128.87,56.50799614]
[1741601272096,81.1,128.92,128.89,56.50799614]
[1741601272972,81.1,128.96,128.89,0.14216157]
[1741601273173,81.1,128.96,128.94,56.50799614]
[1741601273384,81.1,128.99,128.95,56.50799614]
[1741601273964,81.1,128.99,128.96,56.50799614]
[1741601274192,0.03,129.0,128.98,56.50799614]
[1741601274495,0.03,129.0,128.99,56.50799614]
[1741601274988,0.03,129.0,128.98,20.0]
[1741601275308,0.03,129.0,128.98,56.50799614]
[1741601275590,0.03,129.0,128.99,56.50799614]
[1741601275992,0.03,129.0,128.98,56.50799614]
[1741601276206,0.03,129.0,128.97,56.50799614]
[1741601276568,0.03,129.0,128.98,56.50799614]
[1741601277379,0.03,129.0,128.99,56.50799614]
[1741601278373,0.03,129.0,128.99,64.40265771]
[1741601278594,0.03,129.0,128.99,139.70246428]
[1741601279694,0.03,129.02,129.0,18.933972]
[1741601279894,0.03,129.02,129.01,56.65015771]
[1741601280195,0.03,129.02,129.01,83.19326814]
[1741601281402,0.03,129.04,129.03,0.28432314]
[1741601281697,0.03,129.04,129.03,75.44196814]
[1741601282111,0.03,129.04,129.03,139.70006428]
[1741601282398,0.03,129.06,129.05,0.28432314]
[1741601282597,0.03,129.06,129.05,131.94996428]
[1741601283802,0.03,129.12,129.09,20.14216157]
[1741601283976,0.03,129.12,129.11,64.25329614]
[1741601284498,0.03,129.12,129.11,64.39545771]
[1741601284799,0.15,129.16,129.15,20.28432314]
[1741601284974,2.7747609,129.2,129.19,56.50799614]
[1741601285175,2.7747609,129.2,129.17,56.50799614]
[1741601285479,2.7747609,129.2,129.18,56.50799614]
[1741601285679,2.7747609,129.2,129.16,18.64964886]
[1741601285899,2.7747609,129.2,129.18,56.50799614]
[1741601286277,2.7747609,129.2,129.16,18.64964886]
[1741601286484,2.7747609,129.2,129.18,56.50799614]
[1741601286783,2.7747609,129.2,129.17,56.50799614]
[1741601287101,10.5146609,129.2,129.17,56.50799614]
[1741601287400,67.02265704,129.2,129.15,56.50799614]
[1741601287599,10.5146609,129.2,129.15,56.50799614]
[1741601287776,10.5146609,129.2,129.17,56.50799614]
[1741601288101,2.7747609,129.2,129.18,56.50799614]
[1741601288288,2.7747609,129.2,129.16,56.50799614]
[1741601288289,10.5147609,129.2,129.16,56.50799614]
[1741601288495,56.50799614,129.19,129.14,76.50799614]
[1741601288998,10.5147609,129.2,129.18,56.50799614]
[1741601289296,10.5147609,129.2,129.17,56.50799614]
[1741601289499,10.5147609,129.2,129.15,56.50799614]
[1741601289796,2.7747609,129.2,129.18,56.50799614]
[1741601289982,2.7747609,129.2,129.19,83.18246814]
[1741601290689,2.7747609,129.2,129.19,76.50799614]
[1741601290890,2.7747609,129.2,129.18,56.50799614]
[1741601291089,10.5146609,129.2,129.17,56.50799614]
[1741601291292,10.5146609,129.2,129.16,76.50799614]
[1741601291593,2.7747609,129.2,129.17,56.50799614]
[1741601291798,2.7747609,129.2,129.16,20.0]
[1741601291799,2.7747609,129.2,129.18,56.50799614]
[1741601291973,2.7747609,129.2,129.19,56.50799614]
[1741601292888,10.5146609,129.2,129.18,56.50799614]
[1741601293379,10.5146609,129.2,129.17,56.50799614]
[1741601293591,10.5146609,129.2,129.16,76.50799614]
[1741601294192,10.5146609,129.2,129.17,56.50799614]
[1741601294393,2.7747609,129.2,129.17,56.50799614]
[1741601294893,2.7747609,129.2,129.19,56.50799614]
[1741601295085,2.7747609,129.2,129.18,56.50799614]
[1741601295287,2.8047609,129.2,129.17,56.50799614]
[1741601295487,10.5446609,129.2,129.17,56.50799614]
[1741601295694,2.8047609,129.2,129.17,56.50799614]
[1741601296099,2.8047609,129.2,129.19,56.50799614]
[1741601296502,2.8047609,129.2,129.17,56.50799614]
[1741601296706,67.05285704,129.2,129.14,56.50799614]
[1741601297009,56.50799614,129.17,129.12,56.50799614]
[1741601297412,56.50799614,129.18,129.13,56.50799614]
[1741601297619,56.50799614,129.18,129.12,56.50799614]
[1741601297783,56.50799614,129.17,129.11,56.50799614]
[1741601297982,56.50799614,129.17,129.12,56.50799614]
[1741601298183,7.7423,129.16,129.12,56.50799614]
[1741601298428,64.25029614,129.16,129.11,56.50799614]
[1741601298635,56.50799614,129.17,129.12,56.50799614]
[1741601298910,56.50799614,129.17,129.11,56.50799614]
[1741601299104,56.50799614,129.15,129.1,56.50799614]
[1741601299309,56.50799614,129.16,129.11,56.50799614]
[1741601299616,145.34939614,129.18,129.13,56.50799614]
[1741601299908,145.34939614,129.18,129.12,56.50799614]
[1741601300210,56.50799614,129.17,129.12,56.50799614]
[1741601300412,56.50799614,129.16,129.1,56.50799614]
[1741601300711,81.1,129.17,129.09,56.50799614]
[1741601300712,56.50799614,129.14,129.09,56.50799614]
[1741601300923,137.60799614,129.16,129.1,56.50799614]
[1741601301211,81.1,129.16,129.13,56.50799614]
[1741601301431,64.24939614,129.18,129.13,56.50799614]
[1741601301921,56.50799614,129.15,129.09,56.50799614]
[1741601302118,56.50799614,129.14,129.09,56.50799614]
[1741601302337,7.7441,129.13,129.09,56.50799614]
[1741601302618,56.50799614,129.14,129.09,56.50799614]
[1741601302817,7.7437,129.14,129.1,56.50799614]
[1741601303419,56.50799614,129.16,129.11,56.50799614]
[1741601303925,56.50799614,129.15,129.1,56.50799614]
[1741601304319,37.53244471,129.15,129.1,37.53244471]
[1741601304518,37.53244471,129.13,129.08,37.53244471]
[1741601305443,81.1,129.14,129.09,37.53244471]
[1741601306005,37.53244471,129.13,129.08,37.53244471]
[1741601306228,118.63244471,129.14,129.08,37.53244471]
[1741601306522,7.7441,129.13,129.09,37.53244471]
[1741601306714,7.7441,129.13,129.08,37.53244471]
[1741601307026,37.53244471,129.12,129.07,37.53244471]
[1741601307224,81.1,129.12,129.08,37.53244471]
[1741601308631,88.845,129.12,129.08,45.27944471]
[1741601309325,88.845,129.12,129.08,37.53244471]
[1741601310719,88.845,129.12,129.08,45.27944471]
[1741601310998,88.845,129.12,129.08,37.53244471]
[1741601311204,88.845,129.12,129.07,37.53244471]
[1741601311525,95.1308,129.14,129.1,37.53244471]
[1741601311901,87.3872,129.14,129.1,37.53244471]
[1741601312410,37.53244471,129.13,129.08,37.53244471]
[1741601312624,37.53244471,129.13,129.07,37.53244471]
[1741601312819,81.1,129.12,129.09,37.53244471]
[1741601313210,81.1,129.12,129.1,37.53244471]
[1741601313410,51.56324471,129.14,129.09,37.53244471]
[1741601313911,14.0308,129.14,129.09,37.53244471]
[1741601314119,14.0308,129.14,129.1,37.53244471]
[1741601314120,6.2872,129.14,129.1,37.53244471]
[1741601314511,14.0308,129.14,129.09,37.53244471]
[1741601314712,37.53244471,129.13,129.08,37.53244471]
[1741601314916,37.53244471,129.11,129.06,37.53244471]
[1741601315722,37.53244471,129.12,129.07,37.53244471]
[1741601315927,7.7453,129.11,129.07,37.53244471]
[1741601316122,45.27744471,129.12,129.07,45.28004471]
[1741601316326,7.745,129.12,129.07,45.28004471]
[1741601316632,37.53244471,129.08,129.03,0.063]
[1741601317134,58.8,129.1,129.03,0.063]
[1741601317135,37.53244471,129.07,129.03,0.063]
[1741601317304,37.53244471,129.08,129.03,0.063]
[1741601318116,7.7477,129.07,129.03,0.063]
[1741601318718,118.63244471,129.09,129.04,37.53244471]
[1741601318923,81.1,129.09,129.05,37.53244471]
[1741601319818,81.1,129.09,129.06,37.53244471]
[1741601320030,81.1,129.11,129.07,45.27954471]
[1741601320230,88.8454,129.11,129.07,37.53244471]
[1741601322035,88.8454,129.11,129.07,45.28004471]
[1741601322235,88.8454,129.11,129.06,45.28044471]
[1741601322933,118.63244471,129.13,129.07,37.53244471]
[1741601323133,87.3872,129.14,129.09,37.53244471]
[1741601323434,87.3872,129.14,129.1,37.53244471]
[1741601323435,81.1,129.14,129.1,37.53244471]
[1741601324134,132.77884471,129.17,129.11,37.53244471]
[1741601324432,37.53244471,129.14,129.07,18.79181043]
[1741601324635,37.53244471,129.15,129.09,37.53244471]
[1741601324841,81.1,129.16,129.12,37.53244471]
[1741601325636,6.4047,129.17,129.13,37.53244471]
[1741601326230,118.63244471,129.19,129.14,37.53244471]
[1741601326542,118.63244471,129.19,129.16,37.53244471]
[1741601326543,81.1,129.19,129.16,37.53244471]
[1741601326751,2.8047609,129.2,129.17,37.53244471]
[1741601328150,2.8047609,129.2,129.17,45.27414471]
[1741601328444,2.8047609,129.2,129.17,37.53244471]
[1741601329546,2.8047609,129.2,129.18,37.53244471]
[1741601329844,2.8047609,129.2,129.19,37.53244471]
[1741601330748,2.8047609,129.2,129.16,37.53244471]
[1741601330943,2.8047609,129.2,129.17,37.53244471]
[1741601331141,2.8047609,129.2,129.19,37.53244471]
[1741601331949,2.8047609,129.2,129.18,37.53244471]
[1741601332746,2.8047609,129.2,129.19,37.53244471]
[1741601334070,2.8047609,129.2,129.18,37.53244471]
[1741601335465,2.8047609,129.2,129.17,57.53244471]
[1741601335750,2.8047609,129.2,129.18,37.53244471]
[1741601335935,2.8047609,129.2,129.17,20.0]
[1741601336134,10.5446609,129.2,129.17,20.0]
[1741601337366,10.5446609,129.2,129.17,57.53244471]
[1741601338348,2.8047609,129.2,129.17,57.53244471]
[1741601339457,2.8047609,129.2,129.19,37.53244471]
[1741601339757,2.8047609,129.2,129.18,37.53244471]
[1741601340761,2.8047609,129.2,129.19,37.53244471]
[1741601341062,2.8047609,129.2,129.19,56.32425514]
[1741601341245,2.8047609,129.2,129.19,37.53244471]
[1741601341562,2.8047609,129.2,129.16,20.0]
[1741601341750,10.5447609,129.2,129.16,20.0]
[1741601342255,10.5447609,129.2,129.16,57.53244471]
[1741601342850,48.07720561,129.2,129.15,37.53244471]
[1741601343567,10.5447609,129.2,129.16,37.53244471]
[1741601343868,37.53244471,129.18,129.11,1.5478]
[1741601344044,81.1,129.17,129.13,37.53244471]
[1741601344245,118.63244471,129.17,129.11,37.53244471]
[1741601344455,37.53244471,129.15,129.09,0.063]
[1741601344658,37.53244471,129.15,129.09,37.59544471]
[1741601344862,37.53244471,129.14,129.09,37.59544471]
[1741601345467,7.7441,129.13,129.09,37.59544471]
[1741601345748,88.8441,129.13,129.09,0.063]
[1741601346064,37.53244471,129.11,129.09,0.063]
[1741601346261,118.63244471,129.12,129.09,0.063]
[1741601346765,81.1,129.12,129.1,37.53244471]
[1741601346977,81.1,129.15,129.11,37.53244471]
[1741601347146,81.1,129.15,129.12,37.53244471]
[1741601347347,81.1,129.15,129.12,45.27684471]
[1741601347574,81.1,129.15,129.13,37.53244471]
[1741601347874,81.1,129.15,129.11,37.53244471]
[1741601348079,126.37554471,129.15,129.1,57.53244471]
[1741601348252,37.53244471,129.14,129.09,37.59544471]
[1741601349157,45.27624471,129.14,129.09,37.59544471]
[1741601349466,37.53244471,129.13,129.09,0.063]
[1741601349659,37.53244471,129.12,129.09,0.063]
[1741601349857,37.53244471,129.11,129.09,0.063]
[1741601350373,43.91284471,129.12,129.09,0.063]
[1741601351085,37.53244471,129.11,129.09,0.063]
[1741601351566,126.37834471,129.1,129.09,0.063]
[1741601351746,126.52050628,129.1,129.09,0.063]
[1741601352263,45.42050628,129.1,129.09,0.063]
[1741601352589,45.42050628,129.1,129.03,0.063]
[1741601352590,158.833972,129.09,129.03,0.063]
[1741601352750,37.53244471,129.04,129.03,0.063]
[1741601353076,118.63244471,129.04,129.03,0.063]
[1741601353561,81.1,129.04,129.03,0.063]
[1741601354347,81.1,129.07,129.03,0.063]
[1741601355066,118.63244471,129.07,129.03,0.063]
[1741601355274,37.53244471,129.06,129.03,0.063]
[1741601355578,37.53244471,129.05,129.03,0.063]
[1741601356073,118.63244471,129.04,129.03,0.063]
[1741601358053,64.21591671,129.04,129.03,0.063]
[1741601358453,37.53244471,129.04,129.03,0.063]
[1741601358661,45.28074471,129.06,129.03,0.063]
[1741601358957,56.46641671,129.04,129.03,0.063]
[1741601359160,37.67460628,129.04,129.03,0.063]
[1741601359668,37.53244471,129.04,129.03,0.063]
[1741601359964,64.21591671,129.04,129.03,0.063]
[1741601360173,45.42410628,129.04,129.03,0.063]
[1741601360958,64.21591671,129.04,129.03,0.063]
[1741601361355,64.21591671,129.04,129.03,0.0001]
[1741601361666,83.903272,129.03,129.02,0.0001]
[1741601361864,20.0,129.0,128.96,0.063]
[1741601362067,96.33244471,129.01,128.96,37.59544471]
[1741601362258,58.8,129.01,128.97,37.53244471]
[1741601362461,81.1,128.99,128.97,37.53244471]
[1741601362776,81.1,129.01,128.98,37.53244471]
[1741601362977,81.1,129.04,128.99,37.53244471]
[1741601363283,81.1,129.06,129.03,37.53244471]
[1741601363452,81.1,129.06,129.02,37.53244471]
[1741601363658,81.1,129.06,128.98,18.933972]
[1741601363659,81.1,129.06,129.03,37.53244471]
[1741601363954,88.8467,129.09,129.05,37.53244471]
[1741601364155,81.1,129.08,129.04,37.53244471]
[1741601364371,118.63244471,129.07,129.02,37.53244471]
[1741601364574,37.53244471,129.06,129.01,37.53244471]
[1741601364893,81.1,129.05,129.01,37.53244471]
[1741601365066,118.63244471,129.05,128.99,57.53244471]
[1741601365265,81.1,129.05,129.01,37.53244471]
[1741601365666,81.1,129.05,129.02,37.53244471]
[1741601365872,81.1,129.05,129.03,37.53244471]
[1741601366063,81.1,129.05,129.02,37.53244471]
[1741601366281,81.1,129.05,128.99,332.0]
[1741601366476,88.849,129.05,129.01,37.53244471]
[1741601366680,88.849,129.05,129.02,37.53244471]
[1741601367066,81.1,129.05,129.02,37.53244471]
[1741601368767,88.8489,129.05,129.01,37.53244471]
[1741601368976,126.38134471,129.05,128.99,37.53244471]
[1741601369363,145.75364471,129.05,128.99,37.53244471]
[1741601370062,126.38134471,129.05,129.0,37.53244471]
[1741601370267,81.1,129.05,129.02,37.53244471]
[1741601370469,81.1,129.05,129.01,37.53244471]
[1741601370869,88.8489,129.05,129.01,37.53244471]
[1741601371267,88.8489,129.05,128.99,37.53244471]
[1741601371268,37.53244471,129.04,128.99,37.53244471]
[1741601372188,81.1,129.05,129.0,37.53244471]
[1741601372488,37.53244471,129.03,128.98,37.53244471]
[1741601373287,118.63244471,129.02,128.97,37.53244471]
[1741601373493,118.63244471,129.01,128.96,37.59544471]
[1741601374281,81.1,129.01,128.99,37.53244471]
[1741601374797,81.1,129.01,128.98,37.53244471]
[1741601375094,88.8514,129.01,128.96,37.59544471]
[1741601375267,126.38384471,129.01,128.96,0.063]
[1741601375572,37.53244471,128.99,128.97,0.063]
[1741601375780,118.63244471,128.99,128.97,0.063]
[1741601376290,45.28554471,128.98,128.97,0.063]
[1741601377267,126.38554471,128.98,128.97,0.063]
[1741601378513,45.42770628,128.98,128.97,0.063]
[1741601379178,45.28554471,128.98,128.97,0.063]
[1741601379996,96.33244471,129.0,128.97,0.063]
[1741601380182,81.1,128.99,128.97,0.063]
[1741601380387,88.8527,128.99,128.97,0.063]
[1741601380586,81.1,128.99,128.97,0.063]
[1741601380797,147.651,129.02,128.97,37.59544471]
[1741601380987,81.1,129.01,128.97,37.59544471]
[1741601381376,81.1,129.01,128.97,0.063]
[1741601381907,118.63244471,129.01,128.97,0.063]
[1741601382101,37.53244471,129.0,128.97,0.063]
[1741601382408,45.28494471,128.99,128.97,0.063]
[1741601382609,7.7525,128.99,128.97,0.063]
[1741601383910,45.28494471,128.99,128.97,0.063]
[1741601384400,7.7525,128.99,128.97,0.063]
[1741601385003,45.28494471,128.99,128.97,0.063]
[1741601385593,7.7525,128.99,128.97,0.063]
[1741601386809,45.28494471,128.99,128.97,0.063]
[1741601387011,37.53244471,128.98,128.97,0.063]
[1741601387577,104.08494471,128.99,128.97,0.063]
[1741601389803,37.53244471,128.98,128.97,0.063]
[1741601390182,66.5525,128.99,128.97,0.063]
[1741601390486,37.53244471,128.98,128.97,0.063]
[1741601390681,58.8,128.99,128.97,0.063]
[1741601391099,66.5525,128.99,128.97,0.063]
[1741601392104,104.08494471,128.99,128.97,0.063]
[1741601392306,37.53244471,128.98,128.97,0.063]
[1741601392496,56.46641671,128.98,128.97,0.063]
[1741601393709,62.72285583,128.98,128.97,0.063]
[1741601394118,70.47595583,128.98,128.96,0.063]
[1741601394296,107.70019487,128.97,128.96,0.0001]
[1741601395915,107.70019487,128.97,128.91,0.063]
[1741601395916,20.14216157,128.93,128.91,0.063]
[1741601396098,23.82024601,128.92,128.91,0.063]
[1741601396303,31.43478444,128.92,128.91,0.063]
[1741601396521,88.8567,128.92,128.91,0.063]
[1741601396810,99.74964886,128.92,128.91,0.063]
[1741601397001,81.1,128.92,128.91,0.063]
[1741601398586,81.1,128.95,128.91,23.59892287]
[1741601398787,81.1,128.95,128.92,23.53592287]
[1741601399312,81.1,128.95,128.91,23.59892287]
[1741601400217,81.1,128.95,128.91,0.063]
[1741601400430,104.63592287,128.95,128.91,0.063]
[1741601400636,81.1,128.95,128.91,23.59892287]
[1741601400933,104.63592287,128.95,128.91,0.063]
[1741601401424,42.18557173,128.94,128.91,0.063]
[1741601401636,42.18557173,128.92,128.91,0.063]
[1741601402320,81.1,128.93,128.91,0.063]
[1741601402524,139.9,128.95,128.92,23.53592287]
[1741601402722,139.9,128.95,128.91,23.59892287]
[1741601402929,171.19082287,128.95,128.91,0.063]
[1741601403113,23.53592287,128.93,128.91,0.063]
[1741601403520,42.18557173,128.94,128.91,0.063]
[1741601404337,18.64964886,128.94,128.91,0.063]
[1741601405423,49.94127173,128.94,128.91,0.063]
[1741601405629,23.53592287,128.93,128.91,0.063]
[1741601406337,123.28557173,128.92,128.91,0.063]
[1741601406637,50.22659487,128.92,128.91,0.063]
[1741601406832,109.02659487,128.92,128.91,0.063]
[1741601407223,109.02659487,128.92,128.91,0.0001]
[1741601407420,0.14216157,128.91,128.9,0.0001]
[1741601407622,0.14216157,128.91,128.86,0.063]
[1741601407623,20.14216157,128.87,128.86,0.063]
[1741601407823,62.3277333,128.87,128.86,0.063]
[1741601408334,23.53592287,128.88,128.86,0.063]
[1741601408532,26.40934886,128.87,128.86,0.063]
[1741601408714,49.94527173,128.87,128.86,0.063]
[1741601409219,50.22959487,128.87,128.86,0.063]
[1741601409420,50.22959487,128.87,128.86,0.0001]
[1741601409944,51.29472287,128.89,128.86,0.0001]
[1741601410149,42.46989487,128.87,128.86,0.0001]
[1741601410619,50.22959487,128.87,128.86,0.0001]
[1741601410817,23.53592287,128.89,128.86,0.0001]
[1741601411021,18.64964886,128.88,128.86,0.0001]
[1741601411519,18.64964886,128.9,128.86,23.53602287]
[1741601411842,82.62024601,128.89,128.86,0.0001]
[1741601412159,42.46989487,128.87,128.86,0.0001]
[1741601412950,50.0874333,128.87,128.86,0.0001]
[1741601414038,23.53592287,128.89,128.86,0.0001]
[1741601414210,18.79181043,128.89,128.86,0.0001]
[1741601414420,56.47114171,128.89,128.86,0.0001]
[1741601414627,18.64964886,128.89,128.86,0.0001]
[1741601415324,37.67933128,128.88,128.86,0.0001]
[1741601415744,56.47114171,128.87,128.86,0.0001]
[1741601416055,56.61330328,128.87,128.86,0.0001]
[1741601416255,64.37300328,128.87,128.86,0.0001]
[1741601416748,64.23084171,128.87,128.86,0.0001]
[1741601416957,26.55151043,128.87,128.86,0.0001]
[1741601417659,64.37300328,128.87,128.86,0.0001]
[1741601417946,0.28432314,128.85,128.84,0.0001]
[1741601418156,64.37420328,128.85,128.84,0.0001]
[1741601418639,26.694872,128.85,128.84,0.0001]
[1741601418861,26.694872,128.85,128.83,0.063]
[1741601418862,99.89171043,128.84,128.83,0.063]
[1741601419029,56.47114171,128.84,128.83,0.063]
[1741601419225,18.64964886,128.84,128.83,0.063]
[1741601419427,7.7606,128.86,128.83,0.063]
[1741601419628,18.64964886,128.85,128.83,0.063]
[1741601420332,58.8,128.85,128.83,0.063]
[1741601420535,58.8,128.85,128.83,37.74233128]
[1741601420933,58.8,128.85,128.83,0.063]
[1741601423026,66.561,128.85,128.83,0.063]
[1741601423535,104.24033128,128.85,128.83,0.063]
[1741601424132,66.561,128.85,128.83,0.063]
[1741601425256,58.8,128.85,128.83,0.063]
[1741601425436,66.5609,128.85,128.83,0.063]
[1741601425853,58.8,128.85,128.83,0.063]
[1741601427447,66.561,128.85,128.83,0.063]
[1741601430534,158.54964886,128.84,128.83,0.063]
[1741601430734,56.61330328,128.84,128.83,0.063]
[1741601431251,26.695472,128.84,128.83,0.063]
[1741601431943,18.64964886,128.84,128.83,0.063]
[1741601432250,7.7612,128.85,128.83,0.063]
[1741601433851,56.61330328,128.84,128.83,0.063]
[1741601434045,56.32898014,128.84,128.83,0.063]
[1741601434251,18.64964886,128.84,128.83,0.063]